fUST/lending_fUST_20240910
["ID","MTS","AMOUNT","RATE_DAILY","PERIOD"]
[337675998,1725940240875,-500.0,0.00021917,2]
[337675999,1725940240885,-500.0,0.00021917,2]
[337676000,1725940240897,-500.0,0.00021917,2]
[337676001,1725940240907,-500.0,0.00021917,2]
[337676002,1725940240916,-500.0,0.00021917,2]
[337676003,1725940240926,-500.0,0.00021917,2]
[337676004,1725940240936,-500.0,0.00021917,2]
[337676005,1725940240947,-500.0,0.00021917,2]
[337676006,1725940240956,-500.0,0.00021917,2]
[337676007,1725940240967,-500.0,0.00021917,2]
[337676008,1725940240976,-500.0,0.00021917,2]
[337676009,1725940241006,-527.81934227,0.00021917,2]
[337676010,1725940241015,-501.58509281,0.00021917,2]
[337676011,1725940241027,-727.93,0.00021917,2]
[337676012,1725940241037,-500.0,0.00021917,2]
[337676013,1725940241046,-500.0,0.00021917,2]
[337676014,1725940241056,-500.0,0.00021917,2]
[337676015,1725940241066,-978.6,0.00021917,2]
[337676016,1725940241076,-500.0,0.00021917,2]
[337676017,1725940241085,-502.58852765,0.00021917,2]
[337676018,1725940241094,-500.0,0.00021917,2]
[337676019,1725940241103,-501.89407592,0.00021917,2]
[337676020,1725940241113,-500.0,0.00021917,2]
[337676021,1725940241124,-500.0,0.00021917,2]
[337676022,1725940241140,-896.04,0.00021917,2]
[337676023,1725940241151,-500.0,0.00021917,2]
[337676024,1725940241160,-501.30145709,0.00021917,2]
[337676025,1725940241170,-500.0,0.00021917,2]
[337676026,1725940241180,-500.0,0.00021917,2]
[337676027,1725940241189,-500.0,0.00021917,2]
[337676028,1725940241199,-599.97,0.00021917,2]
[337676029,1725940241208,-500.0,0.00021917,2]
[337676030,1725940241218,-500.0,0.00021917,2]
[337676031,1725940241228,-500.0,0.00021917,2]
[337676032,1725940241238,-1003.24,0.00021917,2]
[337676033,1725940241248,-500.0,0.00021917,2]
[337676034,1725940241258,-462.99367383,0.00021917,2]
[337676035,1725940241267,-1114.04,0.00021917,2]
[337676036,1725940241277,-940.82,0.00021917,2]
[337676037,1725940241287,-501.94627665,0.00021917,2]
[337676038,1725940241297,-503.09004834,0.00021917,2]
[337676039,1725940241307,-534.07,0.00021917,2]
[337676040,1725940241316,-500.0,0.00021917,2]
[337676041,1725940241326,-500.0,0.00021917,2]
[337676042,1725940241335,-500.0,0.00021917,2]
[337676043,1725940241345,-501.74265565,0.00021917,2]
[337676044,1725940241356,-500.0,0.00021917,2]
[337676045,1725940241366,-503.44565539,0.00021917,2]
[337676046,1725940241377,-500.0,0.00021917,2]
[337676047,1725940241386,-778.63,0.00021917,2]
[337676048,1725940241395,-503.07509185,0.00021917,2]
[337676049,1725940241407,-1617.28,0.00021917,2]
[337676050,1725940241416,-503.78826697,0.00021917,2]
[337676051,1725940241425,-500.0,0.00021917,2]
[337676052,1725940241435,-500.0,0.00021917,2]
[337676053,1725940241446,-500.0,0.00021917,2]
[337676054,1725940241456,-1071.97,0.00021917,2]
[337676055,1725940241466,-707.51,0.00021917,2]
[337676056,1725940241475,-714.48,0.00021917,2]
[337676057,1725940241485,-507.94989365,0.00021917,2]
[337676058,1725940241495,-1924.69,0.00021917,2]
[337676059,1725940241505,-500.0,0.00021917,2]
[337676060,1725940241515,-502.93161317,0.00021917,2]
[337676061,1725940241524,-500.0,0.00021917,2]
[337676062,1725940241534,-500.0,0.00021917,2]
[337676063,1725940241544,-502.57110574,0.00021917,2]
[337676064,1725940241553,-2093.44,0.00021917,2]
[337676065,1725940241564,-500.0,0.00021917,2]
[337676066,1725940241573,-500.92616293,0.00021917,2]
[337676067,1725940241583,-500.0,0.00021917,2]
[337676068,1725940241594,-1618.92,0.00021917,2]
[337676069,1725940241603,-500.0,0.00021917,2]
[337676070,1725940241613,-500.0,0.00021917,2]
[337676071,1725940241623,-502.56308793,0.00021917,2]
[337676072,1725940241633,-336.55467153,0.00021917,2]
[337676073,1725940241642,-500.0,0.00021917,2]
[337676074,1725940241652,-500.0,0.00021917,2]
[337676075,1725940241662,-501.05865038,0.00021917,2]
[337676076,1725940241672,-500.0,0.00021917,2]
[337676077,1725940241682,-509.67127662,0.00021917,2]
[337676078,1725940241692,-500.0,0.00021917,2]
[337676079,1725940241702,-502.507917,0.00021917,2]
[337676080,1725940241714,-500.0,0.00021917,2]
[337676081,1725940241723,-500.0,0.00021917,2]
[337676082,1725940241734,-503.59430299,0.00021917,2]
[337676083,1725940241745,-503.07536454,0.00021917,2]
[337676084,1725940241755,-502.02872896,0.00021917,2]
[337676085,1725940241766,-500.0,0.00021917,2]
[337676086,1725940241778,-500.0,0.00021917,2]
[337676087,1725940241790,-1304.76,0.00021917,2]
[337676088,1725940241800,-500.0,0.00021917,2]
[337676089,1725940241810,-500.0,0.00021917,2]
[337676090,1725940241823,-510.23244367,0.00021917,2]
[337676091,1725940241833,-500.0,0.00021917,2]
[337676092,1725940241843,-230.5802708,0.00021917,2]
[337676093,1725940241853,-513.56267429,0.00021917,2]
[337676094,1725940241862,-505.51201439,0.00021917,2]
[337676095,1725940241872,-500.0,0.00021917,2]
[337676096,1725940241882,-500.0,0.00021917,2]
[337676097,1725940241896,-198.97782635,0.00021917,2]
[337676098,1725940241908,-868.53,0.00021917,2]
[337676099,1725940241921,-500.0,0.00021917,2]
[337676100,1725940241931,-500.0,0.00021917,2]
[337676101,1725940241943,-500.0,0.00021917,2]
[337676102,1725940241955,-500.0,0.00021917,2]
[337676103,1725940241965,-500.0,0.00021917,2]
[337676104,1725940241976,-567.95,0.00021917,2]
[337676105,1725940241986,-821.56,0.00021917,2]
[337676106,1725940241995,-500.0,0.00021917,2]
[337676107,1725940242004,-500.0,0.00021917,2]
[337676108,1725940242014,-916.71,0.00021917,2]
[337676109,1725940242024,-4017.97,0.00021917,2]
[337676110,1725940242033,-600.08526517,0.00021917,2]
[337676111,1725940242043,-151.0,0.00021917,2]
[337676112,1725940242053,-151.0,0.00021917,2]
[337676113,1725940242066,-500.0,0.00021917,2]
[337676114,1725940242075,-500.0,0.00021917,2]
[337676115,1725940242085,-500.0,0.00021917,2]
[337676116,1725940242099,-500.0,0.00021917,2]
[337676117,1725940242109,-500.0,0.00021917,2]
[337676118,1725940242119,-500.0,0.00021917,2]
[337676119,1725940242128,-748.08,0.00021917,2]
[337676120,1725940242139,-1990.7,0.00021917,2]
[337676121,1725940242149,-734.41,0.00021917,2]
[337676122,1725940242159,-500.0,0.00021917,2]
[337676123,1725940242168,-500.0,0.00021917,2]
[337676124,1725940242178,-1210.41,0.00021917,2]
[337676125,1725940242334,-1388.46,0.00021917,2]
[337676126,1725940242345,-500.0,0.00021917,2]
[337676127,1725940242357,-1287.36,0.00021917,2]
[337676128,1725940242367,-500.0,0.00021917,2]
[337676129,1725940242377,-500.0,0.00021917,2]
[337676130,1725940242386,-151.0,0.00021917,2]
[337676131,1725940242397,-152.273392,0.00021917,2]
[337676132,1725940242407,-500.0,0.00021917,2]
[337676133,1725940242416,-502.98057109,0.00021917,2]
[337676134,1725940242426,-500.0,0.00021917,2]
[337676135,1725940242438,-500.0,0.00021917,2]
[337676137,1725940242448,-500.0,0.00021917,2]
[337676139,1725940242457,-432.91684951,0.00021917,2]
[337676174,1725940242775,-67.08315049,0.00021917,2]
[337676176,1725940242784,-500.0,0.00021917,2]
[337676178,1725940242794,-500.0,0.00021917,2]
[337676180,1725940242804,-500.0,0.00021917,2]
[337676182,1725940242813,-500.0,0.00021917,2]
[337676184,1725940242822,-176.81186051,0.00021917,2]
[337676186,1725940242831,-500.0,0.00021917,2]
[337676187,1725940242841,-500.0,0.00021917,2]
[337676188,1725940242850,-500.0,0.00021917,2]
[337676189,1725940242859,-500.0,0.00021917,2]
[337676190,1725940242869,-506.33781328,0.00021917,2]
[337676191,1725940242878,-722.6,0.00021917,2]
[337676193,1725940242888,-509.47086203,0.00021917,2]
[337676195,1725940242901,-500.0,0.00021917,2]
[337676197,1725940242910,-500.0,0.00021917,2]
[337676199,1725940242919,-2031.08,0.00021917,2]
[337676201,1725940242928,-500.0,0.00021917,2]
[337676202,1725940242938,-500.0,0.00021917,2]
[337676203,1725940242947,-960.74,0.00021917,2]
[337676204,1725940242956,-1870.34,0.00021917,2]
[337676205,1725940242967,-500.0,0.00021917,2]
[337676207,1725940242976,-500.0,0.00021917,2]
[337676209,1725940242986,-500.0,0.00021917,2]
[337676211,1725940242995,-500.0,0.00021917,2]
[337676213,1725940243005,-151.0,0.00021917,2]
[337676215,1725940243014,-151.0,0.00021917,2]
[337676217,1725940243023,-500.0,0.00021917,2]
[337676219,1725940243032,-159.146857,0.00021917,2]
[337676221,1725940243041,-832.42,0.00021917,2]
[337676223,1725940243050,-500.0,0.00021917,2]
[337676225,1725940243060,-613.95911434,0.00021917,2]
[337676227,1725940243070,-500.0,0.00021917,2]
[337676229,1725940243079,-966.309215,0.00021917,2]
[337676231,1725940243088,-500.0,0.00021917,2]
[337676233,1725940243098,-863.42,0.00021917,2]
[337676235,1725940243107,-500.0,0.00021917,2]
[337676237,1725940243117,-966.309215,0.00021917,2]
[337676239,1725940243128,-501.30464746,0.00021917,2]
[337676241,1725940243137,-500.0,0.00021917,2]
[337676243,1725940243146,-500.0,0.00021917,2]
[337676245,1725940243155,-500.0,0.00021917,2]
[337676247,1725940243164,-500.0,0.00021917,2]
[337676249,1725940243173,-500.0,0.00021917,2]
[337676251,1725940243183,-500.0,0.00021917,2]
[337676253,1725940243192,-500.0,0.00021917,2]
[337676255,1725940243201,-500.0,0.00021917,2]
[337676257,1725940243211,-921.26,0.00021917,2]
[337676259,1725940243220,-500.0,0.00021917,2]
[337676260,1725940243230,-701.74,0.00021917,2]
[337676262,1725940243239,-503.09148678,0.00021917,2]
[337676264,1725940243248,-500.0,0.00021917,2]
[337676266,1725940243259,-500.0,0.00021917,2]
[337676268,1725940243268,-570.5,0.00021917,2]
[337676270,1725940243278,-500.0,0.00021917,2]
[337676273,1725940243288,-500.0,0.00021917,2]
[337676275,1725940243298,-308.47973874,0.00021917,2]
[337676276,1725940243308,-500.0,0.00021917,2]
[337676279,1725940243317,-672.66,0.00021917,2]
[337676280,1725940243326,-519.81,0.00021917,2]
[337676282,1725940243336,-646.83,0.00021917,2]
[337676284,1725940243345,-180.88880559,0.00021917,2]
[337676286,1725940243354,-500.0,0.00021917,2]
[337676288,1725940243363,-500.0,0.00021917,2]
[337676290,1725940243373,-500.0,0.00021917,2]
[337676292,1725940243382,-500.0,0.00021917,2]
[337676294,1725940243391,-500.0,0.00021917,2]
[337676296,1725940243401,-1033.92,0.00021917,2]
[337676298,1725940243412,-500.0,0.00021917,2]
[337676300,1725940243421,-578.27,0.00021917,2]
[337676302,1725940243430,-500.0,0.00021917,2]
[337676304,1725940243439,-512.38,0.00021917,2]
[337676306,1725940243448,-151.0,0.00021917,2]
[337676308,1725940243458,-151.0,0.00021917,2]
[337676310,1725940243468,-615.45233055,0.00021917,2]
[337676311,1725940243477,-502.31423615,0.00021917,2]
[337676313,1725940243487,-500.0,0.00021917,2]
[337676314,1725940243497,-1051.85,0.00021917,2]
[337676315,1725940243506,-151.0,0.00021917,2]
[337676316,1725940243515,-151.0,0.00021917,2]
[337676317,1725940243524,-500.0,0.00021917,2]
[337676318,1725940243534,-747.25,0.00021917,2]
[337676319,1725940243543,-500.0,0.00021917,2]
[337676320,1725940243553,-1586.18,0.00021917,2]
[337676321,1725940243562,-500.0,0.00021917,2]
[337676322,1725940243571,-500.0,0.00021917,2]
[337676323,1725940243580,-512.64,0.00021917,2]
[337676324,1725940243590,-528.45,0.00021917,2]
[337676325,1725940243599,-500.0,0.00021917,2]
[337676326,1725940243608,-500.0,0.00021917,2]
[337676327,1725940243617,-500.0,0.00021917,2]
[337676328,1725940243627,-501.15800861,0.00021917,2]
[337676329,1725940243636,-651.24,0.00021917,2]
[337676330,1725940243646,-500.0,0.00021917,2]
[337676331,1725940243656,-507.71566468,0.00021917,2]
[337676332,1725940243665,-1032.44,0.00021917,2]
[337676333,1725940243674,-566.43,0.00021917,2]
[337676334,1725940243683,-293.99,0.00021917,2]
[337676335,1725940243692,-421.61345965,0.00021917,2]
[337676336,1725940243701,-500.0,0.00021917,2]
[337676337,1725940243710,-500.0,0.00021917,2]
[337676338,1725940243719,-534.64,0.00021917,2]
[337676339,1725940243728,-891.47,0.00021917,2]
[337676340,1725940243737,-161.85674528,0.00021917,2]
[337676341,1725940243747,-516.99331206,0.00021917,2]
[337676342,1725940243756,-500.0,0.00021917,2]
[337676343,1725940243765,-911.02,0.00021917,2]
[337676344,1725940243775,-2252.89,0.00021917,2]
[337676345,1725940243784,-500.0,0.00021917,2]
[337676346,1725940243794,-500.0,0.00021917,2]
[337676347,1725940243809,-500.0,0.00021917,2]
[337676348,1725940243823,-500.0,0.00021917,2]
[337676349,1725940243832,-501.48539402,0.00021917,2]
[337676350,1725940243842,-500.0,0.00021917,2]
[337676351,1725940243851,-278.25384775,0.00021917,2]
[337676352,1725940243861,-500.0,0.00021917,2]
[337676353,1725940243871,-500.0,0.00021917,2]
[337676354,1725940243883,-500.0,0.00021917,2]
[337676355,1725940243896,-4754.32,0.00021917,2]
[337676356,1725940243907,-1218.45,0.00021917,2]
[337676357,1725940243919,-534.77,0.00021917,2]
[337676358,1725940243930,-501.18030637,0.00021917,2]
[337676359,1725940243942,-2603.98,0.00021917,2]
[337676360,1725940243953,-500.0,0.00021917,2]
[337676361,1725940243965,-500.0,0.00021917,2]
[337676362,1725940243977,-523.15,0.00021917,2]
[337676363,1725940243987,-1904.32,0.00021917,2]
[337676364,1725940243997,-500.0,0.00021917,2]
[337676365,1725940244006,-500.0,0.00021917,2]
[337676366,1725940244016,-500.87890431,0.00021917,2]
[337676367,1725940244026,-7933.51,0.00021917,2]
[337676368,1725940244037,-500.0,0.00021917,2]
[337676369,1725940244049,-500.0,0.00021917,2]
[337676370,1725940244061,-500.0,0.00021917,2]
[337676371,1725940244070,-1474.28,0.00021917,2]
[337676372,1725940244080,-500.0,0.00021917,2]
[337676373,1725940244092,-500.0,0.00021917,2]
[337676374,1725940244103,-1548.68,0.00021917,2]
[337676375,1725940244113,-500.0,0.00021917,2]
[337676376,1725940244125,-4885.63,0.00021917,2]
[337676377,1725940244136,-4603.23,0.00021917,2]
[337676378,1725940244147,-500.0,0.00021917,2]
[337676379,1725940244156,-500.0,0.00021917,2]
[337676380,1725940244166,-8856.77,0.00021917,2]
[337676381,1725940244176,-2268.52,0.00021917,2]
[337676382,1725940244186,-500.0,0.00021917,2]
[337676383,1725940244198,-500.0,0.00021917,2]
[337676384,1725940244209,-500.0,0.00021917,2]
[337676385,1725940244220,-500.0,0.00021917,2]
[337676386,1725940244231,-500.0,0.00021917,2]
[337676387,1725940244243,-500.0,0.00021917,2]
[337676388,1725940244253,-507.48637224,0.00021917,2]
[337676389,1725940244263,-500.0,0.00021917,2]
[337676390,1725940244272,-327.651041,0.00021917,2]
[337676391,1725940244283,-327.651041,0.00021917,2]
[337676392,1725940244293,-500.0,0.00021917,2]
[337676393,1725940244305,-592.91,0.00021917,2]
[337676394,1725940244316,-500.0,0.00021917,2]
[337676395,1725940244328,-500.0,0.00021917,2]
[337676396,1725940244339,-500.0,0.00021917,2]
[337676397,1725940244349,-887.41,0.00021917,2]
[337676398,1725940244358,-1131.85,0.00021917,2]
[337676399,1725940244368,-500.0,0.00021917,2]
[337676400,1725940244387,-500.0,0.00021917,2]
[337676401,1725940244397,-327.651041,0.00021917,2]
[337676402,1725940244406,-327.651041,0.00021917,2]
[337676403,1725940244415,-1094.82,0.00021917,2]
[337676404,1725940244424,-1728.83,0.00021917,2]
[337676405,1725940244434,-4459.94,0.00021917,2]
[337676406,1725940244449,-500.0,0.00021917,2]
[337676407,1725940244462,-3779.05,0.00021917,2]
[337676408,1725940244473,-500.0,0.00021917,2]
[337676409,1725940244484,-628.30504045,0.00021917,2]
[337676410,1725940244496,-1644.75,0.00021917,2]
[337676411,1725940244506,-500.0,0.00021917,2]
[337676413,1725940244517,-289.805818,0.00021917,2]
[337676415,1725940244529,-289.805818,0.00021917,2]
[337676417,1725940244543,-502.71739574,0.00021917,2]
[337676418,1725940244555,-1023.42,0.00021917,2]
[337676419,1725940244565,-500.0,0.00021917,2]
[337676420,1725940244575,-502.75758348,0.00021917,2]
[337676421,1725940244585,-500.0,0.00021917,2]
[337676422,1725940244595,-289.805818,0.00021917,2]
[337676423,1725940244606,-500.0,0.00021917,2]
[337676424,1725940244617,-1475.2,0.00021917,2]
[337676425,1725940244630,-289.805818,0.00021917,2]
[337676426,1725940244640,-151.0,0.00021917,2]
[337676427,1725940244649,-151.0,0.00021917,2]
[337676428,1725940244659,-500.0,0.00021917,2]
[337676429,1725940244669,-503.92364613,0.00021917,2]
[337676430,1725940244679,-500.0,0.00021917,2]
[337676431,1725940244689,-1809.76,0.00021917,2]
[337676432,1725940244700,-503.82524376,0.00021917,2]
[337676433,1725940244711,-1125.18,0.00021917,2]
[337676434,1725940244722,-541.25,0.00021917,2]
[337676435,1725940244732,-500.0,0.00021917,2]
[337676436,1725940244743,-500.0,0.00021917,2]
[337676437,1725940244755,-500.0,0.00021917,2]
[337676438,1725940244767,-500.0,0.00021917,2]
[337676439,1725940244776,-500.0,0.00021917,2]
[337676440,1725940244786,-500.0,0.00021917,2]
[337676441,1725940244795,-500.0,0.00021917,2]
[337676442,1725940244805,-333.40626722,0.00021917,2]
[337676443,1725940244814,-500.0,0.00021917,2]
[337676444,1725940244824,-2211.34,0.00021917,2]
[337676445,1725940244833,-524.91,0.00021917,2]
[337676446,1725940244842,-265.363178,0.00021917,2]
[337676447,1725940244853,-265.363178,0.00021917,2]
[337676448,1725940244864,-571.79,0.00021917,2]
[337676449,1725940244874,-1709.98,0.00021917,2]
[337676450,1725940244883,-500.0,0.00021917,2]
[337676451,1725940244895,-500.0,0.00021917,2]
[337676452,1725940244906,-2166.69,0.00021917,2]
[337676453,1725940244915,-265.363178,0.00021917,2]
[337676454,1725940244926,-265.363178,0.00021917,2]
[337676455,1725940244937,-500.0,0.00021917,2]
[337676456,1725940244948,-750.12,0.00021917,2]
[337676457,1725940244957,-4927.61,0.00021917,2]
[337676458,1725940244967,-500.0,0.00021917,2]
[337676459,1725940244977,-500.0,0.00021917,2]
[337676460,1725940244988,-163.213645,0.00021917,2]
[337676461,1725940244998,-500.0,0.00021917,2]
[337676462,1725940245007,-604.88,0.00021917,2]
[337676463,1725940245016,-735.11,0.00021917,2]
[337676464,1725940245027,-162.044293,0.00021917,2]
[337676465,1725940245036,-500.0,0.00021917,2]
[337676466,1725940245046,-505.65509984,0.00021917,2]
[337676467,1725940245055,-505.15761073,0.00021917,2]
[337676468,1725940245069,-607.13,0.00021917,2]
[337676469,1725940245079,-500.0,0.00021917,2]
[337676470,1725940245089,-196.82578599,0.00021917,2]
[337676471,1725940245101,-684.91,0.00021917,2]
[337676472,1725940245111,-151.0,0.00021917,2]
[337676473,1725940245121,-151.0,0.00021917,2]
[337676474,1725940245130,-500.0,0.00021917,2]
[337676475,1725940245140,-500.0,0.00021917,2]
[337676476,1725940245150,-500.0,0.00021917,2]
[337676477,1725940245159,-933.41,0.00021917,2]
[337676478,1725940245169,-151.0,0.00021917,2]
[337676479,1725940245179,-151.0,0.00021917,2]
[337676480,1725940245189,-500.0,0.00021917,2]
[337676481,1725940245198,-151.0,0.00021917,2]
[337676482,1725940245208,-500.0,0.00021917,2]
[337676483,1725940245219,-151.0,0.00021917,2]
[337676484,1725940245229,-613.83,0.00021917,2]
[337676485,1725940245238,-500.0,0.00021917,2]
[337676486,1725940245250,-771.84,0.00021917,2]
[337676487,1725940245260,-151.0,0.00021917,2]
[337676488,1725940245270,-151.0,0.00021917,2]
[337676489,1725940245279,-511.11645279,0.00021917,2]
[337676490,1725940245290,-500.0,0.00021917,2]
[337676491,1725940245300,-687.57,0.00021917,2]
[337676492,1725940245310,-500.0,0.00021917,2]
[337676493,1725940245320,-928.42,0.00021917,2]
[337676494,1725940245329,-1173.75,0.00021917,2]
[337676495,1725940245339,-3206.04,0.00021917,2]
[337676496,1725940245349,-1306.86,0.00021917,2]
[337676497,1725940245360,-500.0,0.00021917,2]
[337676498,1725940245370,-500.0,0.00021917,2]
[337676499,1725940245380,-500.0,0.00021917,2]
[337676500,1725940245391,-500.0,0.00021917,2]
[337676501,1725940245401,-1623.16,0.00021917,2]
[337676502,1725940245620,-591.75,0.00021917,2]
[337676503,1725940245631,-775.31,0.00021917,2]
[337676504,1725940245641,-500.0,0.00021917,2]
[337676506,1725940245653,-500.0,0.00021917,2]
[337676508,1725940245663,-177.275072,0.00021917,2]
[337676510,1725940245674,-577.66,0.00021917,2]
[337676511,1725940245684,-177.275072,0.00021917,2]
[337676512,1725940245694,-500.0,0.00021917,2]
[337676513,1725940245705,-666.1,0.00021917,2]
[337676514,1725940245715,-500.0,0.00021917,2]
[337676515,1725940245726,-500.0,0.00021917,2]
[337676516,1725940245736,-500.0,0.00021917,2]
[337676517,1725940245745,-448.07582262,0.00021917,2]
[337676518,1725940245755,-500.0,0.00021917,2]
[337676519,1725940245764,-2070.82,0.00021917,2]
[337676520,1725940245774,-500.0,0.00021917,2]
[337676521,1725940245784,-500.0,0.00021917,2]
[337676522,1725940245794,-640.8693404,0.00021917,2]
[337676523,1725940245803,-500.0,0.00021917,2]
[337676524,1725940245813,-177.275072,0.00021917,2]
[337676525,1725940245822,-504.32514012,0.00021917,2]
[337676526,1725940245832,-177.275072,0.00021917,2]
[337676527,1725940245841,-500.0,0.00021917,2]
[337676528,1725940245850,-500.0,0.00021917,2]
[337676529,1725940245859,-500.0,0.00021917,2]
[337676530,1725940245869,-500.0,0.00021917,2]
[337676531,1725940245878,-539.4080335,0.00021917,2]
[337676532,1725940245888,-500.0,0.00021917,2]
[337676533,1725940245909,-695.16,0.00021917,2]
[337676534,1725940245921,-7056.03,0.00021917,2]
[337676535,1725940245931,-754.33,0.00021917,2]
[337676536,1725940245943,-3824.01,0.00021917,2]
[337676537,1725940245952,-1569.32,0.00021917,2]
[337676538,1725940245962,-500.0,0.00021917,2]
[337676539,1725940245973,-1823.31,0.00021917,2]
[337676540,1725940245983,-500.0,0.00021917,2]
[337676541,1725940245992,-500.0,0.00021917,2]
[337676542,1725940246002,-557.31,0.00021917,2]
[337676543,1725940246013,-649.62,0.00021917,2]
[337676544,1725940246022,-619.02574312,0.00021917,2]
[337676545,1725940246032,-1908.64,0.00021917,2]
[337676546,1725940246042,-500.0,0.00021917,2]
[337676547,1725940246051,-825.05,0.00021917,2]
[337676548,1725940246061,-628.58,0.00021917,2]
[337676549,1725940246072,-500.0,0.00021917,2]
[337676550,1725940246081,-1240.77,0.00021917,2]
[337676551,1725940246091,-500.0,0.00021917,2]
[337676552,1725940246100,-1315.48,0.00021917,2]
[337676553,1725940246110,-500.0,0.00021917,2]
[337676554,1725940246119,-500.0,0.00021917,2]
[337676555,1725940246130,-1683.97,0.00021917,2]
[337676556,1725940246140,-601.44226984,0.00021917,2]
[337676557,1725940246149,-500.0,0.00021917,2]
[337676558,1725940246159,-500.0,0.00021917,2]
[337676559,1725940246168,-700.22,0.00021917,2]
[337676560,1725940246178,-2193.09,0.00021917,2]
[337676561,1725940246188,-2013.7,0.00021917,2]
[337676562,1725940246198,-500.0,0.00021917,2]
[337676563,1725940246207,-504.2932607,0.00021917,2]
[337676564,1725940246217,-500.0,0.00021917,2]
[337676565,1725940246226,-669.74,0.00021917,2]
[337676566,1725940246236,-1550.65,0.00021917,2]
[337676567,1725940246245,-500.0,0.00021917,2]
[337676568,1725940246255,-505.34,0.00021917,2]
[337676569,1725940246265,-500.0,0.00021917,2]
[337676570,1725940246274,-151.0,0.00021917,2]
[337676571,1725940246283,-151.0,0.00021917,2]
[337676572,1725940246293,-859.6,0.00021917,2]
[337676573,1725940246302,-676.55,0.00021917,2]
[337676574,1725940246313,-500.0,0.00021917,2]
[337676575,1725940246324,-500.0,0.00021917,2]
[337676576,1725940246334,-500.0,0.00021917,2]
[337676577,1725940246343,-500.0,0.00021917,2]
[337676578,1725940246353,-500.0,0.00021917,2]
[337676579,1725940246362,-599.47,0.00021917,2]
[337676580,1725940246372,-500.0,0.00021917,2]
[337676581,1725940246382,-151.0,0.00021917,2]
[337676582,1725940246392,-238.305519,0.00021917,2]
[337676583,1725940246402,-1884.05,0.00021917,2]
[337676584,1725940246411,-500.0,0.00021917,2]
[337676585,1725940246420,-1686.11,0.00021917,2]
[337676586,1725940246429,-500.0,0.00021917,2]
[337676587,1725940246439,-500.0,0.00021917,2]
[337676588,1725940246449,-751.49,0.00021917,2]
[337676589,1725940246459,-500.0,0.00021917,2]
[337676590,1725940246469,-841.83,0.00021917,2]
[337676591,1725940246479,-908.97,0.00021917,2]
[337676592,1725940246489,-500.0,0.00021917,2]
[337676593,1725940246499,-500.0,0.00021917,2]
[337676594,1725940246512,-500.0,0.00021917,2]
[337676595,1725940246523,-500.0,0.00021917,2]
[337676596,1725940246534,-1125.86,0.00021917,2]
[337676597,1725940246545,-500.0,0.00021917,2]
[337676598,1725940246556,-500.0,0.00021917,2]
[337676599,1725940246566,-964.59,0.00021917,2]
[337676600,1725940246576,-500.0,0.00021917,2]
[337676601,1725940246586,-500.0,0.00021917,2]
[337676602,1725940246596,-500.0,0.00021917,2]
[337676603,1725940246605,-500.0,0.00021917,2]